fUSD/lending_fUSD_20240524
["ID","MTS","AMOUNT","RATE_DAILY","PERIOD"]
[327824020,1716514240744,-4929.051765,0.00034129,7]
[327824021,1716514240760,-3985.1077921,0.00034129,7]
[327824022,1716514240774,-4936.4916975,0.00034129,7]
[327824023,1716514240786,-16513.26340908,0.00034129,7]
[327824024,1716514240797,-7316.81342305,0.00034129,7]
[327824025,1716514240807,-52049.66381093,0.00034129,7]
[327824026,1716514240816,-56151.60815597,0.00034129,7]
[327824027,1716514240825,-1000.0,0.00034129,60]
[327824028,1716514240835,-1179.54,0.00034129,60]
[327824029,1716514240845,-1000.0,0.00034129,30]
[327824030,1716514240855,-1000.0,0.00034129,30]
[327824031,1716514240864,-1000.0,0.00034129,30]
[327824032,1716514240874,-1000.0,0.00034129,30]
[327824033,1716514240883,-1000.0,0.00034129,30]
[327824034,1716514240892,-1000.0,0.00034129,30]
[327824035,1716514240902,-1000.0,0.00034129,30]
[327824036,1716514240912,-1000.0,0.00034129,30]
[327824037,1716514240921,-1000.0,0.00034129,30]
[327824038,1716514240930,-1000.0,0.00034129,30]
[327824039,1716514240940,-1000.0,0.00034129,30]
[327824040,1716514240949,-1000.0,0.00034129,30]
[327824041,1716514240959,-1000.0,0.00034129,30]
[327824042,1716514240969,-1000.0,0.00034129,30]
[327824043,1716514240978,-1000.0,0.00034129,30]
[327824044,1716514240988,-1099.0281329,0.00034129,30]
[327824045,1716514240998,-5945.63702871,0.00034129,60]
[327824046,1716514241008,-2041.47,0.00034129,90]
[327824047,1716514241017,-218.71903842,0.00034129,90]
[327824048,1716514241029,-2972.9713307,0.00034129,30]
[327824049,1716514241038,-2201.54808821,0.00034129,30]
[327824050,1716514241047,-523.10210707,0.00034129,60]
[327824051,1716514241057,-2128.07618711,0.00034129,120]
[327824052,1716514241067,-2592.29712155,0.00034129,30]
[327824053,1716514241076,-2216.07517612,0.00034129,30]
[327824054,1716514241086,-2623.8065188,0.00034129,120]
[327824055,1716514241096,-2174.7916654,0.00034129,120]
[327824056,1716514241106,-1824.53333545,0.00034129,30]
[327824057,1716514241115,-2457.91135561,0.00034129,30]
[327824058,1716514241125,-3148.98487987,0.00034129,30]
[327824059,1716514241135,-2882.53502919,0.00034129,120]
[327824060,1716514241148,-2500.0,0.00034129,30]
[327824061,1716514241159,-2000.0,0.00034129,90]
[327824062,1716514241169,-1830.72567725,0.00034129,120]
[327824063,1716514241178,-3000.0,0.00034129,30]
[327824064,1716514241188,-3231.7123461,0.00034129,120]
[327824065,1716514241198,-935.69814551,0.00034129,120]
[327824066,1716514241208,-259.61104181,0.00034129,120]
[327824067,1716514241218,-2960.70126597,0.00034129,120]
[327824068,1716514241228,-2516.8901946,0.00034129,120]
[327824069,1716514241237,-2417.09439954,0.00034129,120]
[327824070,1716514241247,-2873.18347798,0.00034129,30]
[327824071,1716514241256,-155.03254447,0.00034129,30]
[327824072,1716514241266,-1154.00383321,0.00034129,120]
[327824073,1716514241278,-2848.34856242,0.00034129,120]
[327824074,1716514241287,-5765.23309532,0.00034129,120]
[327824075,1716514241297,-1870.60199842,0.00034129,120]
[327824076,1716514241307,-334.4730599,0.00034129,120]
[327824077,1716514241316,-2513.52108026,0.00034129,30]
[327824078,1716514241325,-166.89191467,0.00034129,30]
[327824079,1716514241335,-1655.51092651,0.00034129,30]
[327824080,1716514241344,-505.62842464,0.00034129,30]
[327824081,1716514241358,-1668.99074919,0.00034129,30]
[327824082,1716514241368,-2231.0655113,0.00034129,120]
[327824083,1716514241377,-900.17789574,0.00034129,120]
[327824084,1716514241387,-2057.72205264,0.00034129,30]
[327824085,1716514241396,-93.2547355,0.00034129,120]
[327824086,1716514241425,-511.30573802,0.00033999,6]
[327824087,1716514241436,-916.93681894,0.00034129,120]
[327824088,1716514241446,-637.23001852,0.00034129,120]
[327824089,1716514241458,-362.76998148,0.00034129,120]
[327824090,1716514241468,-1266.92488878,0.00034129,2]
[327824091,1716514241481,-951.87000001,0.00034129,2]
[327824092,1716514241492,-3927.54929324,0.00034129,2]
[327824093,1716514241643,-20.4139712,0.00034129,2]
[327824094,1716514241653,-2082.9,0.00034129,120]
[327824095,1716514241663,-1099.54436467,0.00034129,30]
[327824096,1716514241672,-2984.54166413,0.00034129,120]
[327824097,1716514241683,-2830.02928545,0.00034129,120]
[327824098,1716514241695,-591.65,0.00034129,120]
[327824099,1716514241707,-4714.87298016,0.00034129,120]
[327824100,1716514241720,-737.35607026,0.00034129,120]
[327824101,1716514241730,-1001.55637532,0.00034129,120]
[327824102,1716514241740,-5190.61143442,0.00034129,30]
[327824103,1716514241752,-1604.54927796,0.00034129,30]
[327824104,1716514241762,-2000.0,0.00034129,30]
[327824105,1716514241772,-914.2738992,0.00034129,2]
[327824106,1716514241781,-151.9319999,0.00034129,2]
[327824107,1716514241791,-329.24482294,0.00034129,120]
[327824108,1716514241990,-170.75517706,0.00034129,120]
[327824109,1716514242000,-229.11962878,0.00034129,30]
[327824110,1716514242011,-1197.8095201,0.00034129,30]
[327824111,1716514242024,-796.61541422,0.00034129,30]
[327824112,1716514242036,-11199.8748334,0.00034129,30]
[327824113,1716514242048,-5322.75017585,0.00034129,30]
[327824114,1716514242059,-135697.1386896,0.00034129,30]
[327824115,1716514242071,-252.76586461,0.00034129,30]
[327824121,1716514243696,-906.17357973,0.00034067,2]
[327824122,1716514243706,-192.63642027,0.00034129,30]
[327824123,1716514243717,-38207.28858129,0.00034129,30]
[327824124,1716514243727,-1244.2318859,0.00034129,4]
[327824125,1716514243736,-1000.0,0.00034129,30]
[327824126,1716514243747,-1000.0,0.00034129,120]
[327824127,1716514243756,-1438.00548748,0.00034129,120]
[327824128,1716514243766,-5199.0,0.00034129,120]
[327824129,1716514243777,-9999.999999,0.00034129,2]
[327824130,1716514243787,-150.0,0.00034129,3]
[327824131,1716514243796,-1000.0,0.00034129,31]
[327824132,1716514243806,-155.66702964,0.00034129,30]
[327824133,1716514243815,-11043.57587077,0.00034129,30]
[327824134,1716514243825,-65940.25559854,0.00034129,15]
[327824135,1716514243835,-525362.98590816,0.00034129,30]
[327824136,1716514243848,-20228.33107283,0.00034129,30]
[327824137,1716514243861,-4745.73793655,0.00034129,30]
[327824138,1716514243873,-1411.315,0.00034129,30]
[327824139,1716514243886,-4925.60560413,0.00034129,30]
[327824140,1716514243897,-409.987,0.00034129,30]
[327824141,1716514244071,-513.18500005,0.00034129,30]
[327824142,1716514244084,-162928.96196638,0.00034129,30]
[327824143,1716514244094,-11926.28162101,0.00034129,30]
[327824144,1716514244104,-5223.22864456,0.00034129,30]
[327824145,1716514244114,-963.24580674,0.00034129,30]
[327824146,1716514244126,-4284.95206003,0.00034129,30]
[327824147,1716514244136,-16643.93305414,0.00034129,30]
[327824148,1716514244146,-15877.68516333,0.00034129,15]
[327824149,1716514244161,-930.56892201,0.00034129,15]
[327824151,1716514245883,-333.0,0.00034129,5]
[327824152,1716514245894,-12559.67534807,0.00034129,15]
[327824153,1716514245905,-386.69266921,0.00034129,30]
[327824154,1716514245938,-5092.31645365,0.00034129,30]
[327824155,1716514245948,-2466.83144095,0.00034129,15]
[327824156,1716514246240,-1650.24238056,0.00034129,15]
[327824157,1716514246252,-754.17001704,0.00034129,15]
[327824158,1716514246261,-9932.87587272,0.00034129,15]
[327824159,1716514246271,-160.85191126,0.00034129,2]
[327824160,1716514246283,-125774.76047861,0.00034129,30]
[327824161,1716514246292,-14029.53665815,0.00034129,30]
[327824162,1716514246301,-84816.39637614,0.00034129,30]
[327824163,1716514246310,-3593.02347043,0.00034129,2]
[327824164,1716514246319,-3777.45874463,0.00034129,20]
[327824165,1716514246329,-289.86391316,0.00034129,2]
[327824166,1716514246339,-306.34819995,0.00034129,120]
[327824167,1716514246349,-470.74693227,0.00034129,2]
[327824168,1716514246359,-50507.687128,0.00034129,120]
[327824169,1716514246368,-386.86772036,0.00034129,2]
[327824170,1716514246379,-241.60729161,0.00034129,2]
[327824171,1716514246389,-318.42264767,0.00034129,2]
[327824172,1716514246399,-356.39364547,0.00034129,2]
[327824173,1716514246409,-42032.13532551,0.00034129,2]
[327824174,1716514246420,-339.21225868,0.00034129,2]
[327824175,1716514246434,-963.39637826,0.00034129,20]
[327824176,1716514246443,-215.25556763,0.00034129,2]
[327824177,1716514246453,-23190.74922891,0.00034129,2]
[327824178,1716514246463,-30000.0,0.00034129,90]
[327824179,1716514246474,-499.999999,0.00034129,2]
[327824180,1716514246483,-11045.78570872,0.00034129,2]
[327824181,1716514246493,-1036.0,0.00034129,30]
[327824182,1716514246502,-1036.0,0.00034129,30]
[327824183,1716514246515,-1036.0,0.00034129,30]
[327824184,1716514246524,-1036.0,0.00034129,30]
[327824185,1716514246535,-1036.0,0.00034129,30]
[327824186,1716514246545,-1036.0,0.00034129,30]
[327824187,1716514246554,-1036.0,0.00034129,30]
[327824188,1716514246564,-1036.0,0.00034129,30]
[327824189,1716514246573,-1036.0,0.00034129,30]
[327824190,1716514246584,-1036.0,0.00034129,30]
[327824191,1716514246596,-1036.0,0.00034129,30]
[327824192,1716514246606,-1036.0,0.00034129,30]
[327824193,1716514246615,-1036.0,0.00034129,30]
[327824194,1716514246625,-1036.0,0.00034129,30]
[327824195,1716514246634,-1036.0,0.00034129,30]
[327824196,1716514246643,-1036.0,0.00034129,30]
[327824197,1716514246653,-1036.0,0.00034129,30]
[327824198,1716514246662,-1036.0,0.00034129,30]
[327824199,1716514246671,-1036.0,0.00034129,30]
[327824200,1716514246680,-1036.0,0.00034129,30]
[327824201,1716514246690,-1036.0,0.00034129,30]
[327824202,1716514246699,-1036.0,0.00034129,30]
[327824203,1716514246708,-1036.0,0.00034129,30]
[327824204,1716514246718,-1036.0,0.00034129,30]
[327824205,1716514246728,-1036.0,0.00034129,30]
[327824206,1716514246737,-1036.0,0.00034129,30]
[327824207,1716514246746,-1036.0,0.00034129,30]
[327824208,1716514246755,-1036.0,0.00034129,30]
[327824209,1716514246765,-1036.0,0.00034129,30]
[327824210,1716514246774,-1036.0,0.00034129,30]
[327824211,1716514246785,-1087.52328874,0.00034129,30]
[327824212,1716514246794,-150.0,0.00034129,2]
[327824213,1716514246803,-225.1,0.00034129,2]
[327824214,1716514246813,-330.899645,0.00034129,30]
[327824215,1716514246822,-150.0,0.00034129,2]
[327824216,1716514246832,-150.0,0.00034129,2]
[327824217,1716514246842,-150.0,0.00034129,2]
[327824218,1716514246852,-150.0,0.00034129,2]
[327824219,1716514246862,-150.0,0.00034129,2]
[327824220,1716514246871,-170.551359,0.00034129,2]
[327824221,1716514246881,-491.308,0.00034129,14]
[327824222,1716514246891,-1746.63,0.00034129,2]
[327824223,1716514246900,-1746.63,0.00034129,2]
[327824224,1716514246910,-1746.63,0.00034129,2]
[327824225,1716514246920,-1746.63,0.00034129,2]
[327824226,1716514246929,-1746.63,0.00034129,2]
[327824227,1716514246938,-1746.63,0.00034129,2]
[327824228,1716514246948,-1746.63,0.00034129,2]
[327824229,1716514246958,-1746.63,0.00034129,2]
[327824230,1716514246967,-1746.63,0.00034129,2]
[327824231,1716514246977,-1746.63,0.00034129,2]
[327824232,1716514246988,-1746.63,0.00034129,2]
[327824233,1716514246998,-1746.63,0.00034129,2]
[327824234,1716514247007,-1746.63,0.00034129,60]
[327824235,1716514247016,-1746.63,0.00034129,60]
[327824236,1716514247028,-1746.63,0.00034129,60]
[327824237,1716514247037,-1746.63,0.00034129,60]
[327824238,1716514247047,-1746.63,0.00034129,60]
[327824239,1716514247057,-1746.63,0.00034129,60]
[327824240,1716514247067,-1746.63,0.00034129,60]
[327824241,1716514247076,-1746.63,0.00034129,60]
[327824242,1716514247086,-1746.63,0.00034129,60]
[327824243,1716514247096,-1746.63,0.00034129,60]
[327824244,1716514247105,-1746.63,0.00034129,60]
[327824245,1716514247115,-1746.76123756,0.00034129,60]
[327824246,1716514247125,-8146.5951,0.00034129,30]
[327824247,1716514247134,-369.81536608,0.00034129,30]
[327824248,1716514247144,-83177.40171389,0.00034129,30]
[327824249,1716514247153,-1518.41981039,0.00034154,6]
[327824250,1716514247163,-150.0,0.00034244,120]
[327824251,1716514247172,-1518.41981039,0.00034278,6]
[327824252,1716514247182,-150.0,0.00034285,7]
[327824253,1716514247191,-259.66612387,0.00034289,2]
[327824254,1716514247200,-152.0,0.00034394,4]
[327824255,1716514247210,-1567.94,0.000344,2]
[327824256,1716514247220,-2241.07,0.000344,2]
[327824257,1716514247230,-1567.94,0.000344,2]
[327824258,1716514247239,-2241.07,0.000344,2]
[327824259,1716514247249,-1567.94,0.000344,2]
[327824260,1716514247258,-2241.07,0.000344,2]
[327824261,1716514247268,-1567.94,0.000344,2]
[327824262,1716514247279,-2241.07,0.000344,2]
[327824263,1716514247289,-1567.94,0.000344,2]
[327824264,1716514247298,-2241.07,0.000344,2]
[327824265,1716514247308,-1567.94,0.000344,2]
[327824266,1716514247317,-2241.07,0.000344,2]
[327824267,1716514247327,-1567.94,0.000344,2]
[327824268,1716514247337,-2241.07,0.000344,2]
[327824269,1716514247347,-1567.94,0.000344,2]
[327824270,1716514247356,-2241.07,0.000344,2]
[327824271,1716514247366,-1567.94,0.000344,2]
[327824272,1716514247375,-2241.07,0.000344,2]
[327824273,1716514247385,-1567.94,0.000344,2]
[327824274,1716514247395,-2241.07,0.000344,2]
[327824275,1716514247405,-1567.94,0.000344,2]
[327824276,1716514247416,-2241.07,0.000344,2]
[327824277,1716514247431,-1567.94,0.000344,2]
[327824278,1716514247441,-2241.07,0.000344,2]
[327824279,1716514247451,-1567.94,0.000344,2]
[327824280,1716514247462,-2241.07,0.000344,2]
[327824281,1716514247471,-1567.94,0.000344,2]
[327824282,1716514247480,-2241.07,0.000344,2]
[327824283,1716514247490,-2241.07,0.000344,2]
[327824284,1716514247500,-1567.94,0.000344,2]
[327824285,1716514247512,-2241.07,0.000344,2]
[327824286,1716514247522,-1567.94,0.000344,2]
[327824287,1716514247532,-2241.07,0.000344,2]
[327824288,1716514247542,-1567.94,0.000344,2]
[327824289,1716514247551,-2241.07,0.000344,2]
[327824290,1716514247560,-1567.94,0.000344,2]
[327824291,1716514247570,-2241.07,0.000344,2]
[327824292,1716514247579,-2241.07,0.000344,2]
[327824293,1716514247590,-1567.94,0.000344,2]
[327824294,1716514247600,-1567.94,0.000344,2]
[327824295,1716514247610,-1518.41981039,0.00034403,6]
[327824296,1716514247619,-776.0,0.00034435,2]
[327824297,1716514247629,-604.0,0.00034435,2]
[327824298,1716514247641,-4000.0,0.00034463,7]
[327824299,1716514247650,-189.0,0.000345,23]
[327824300,1716514247660,-150.0,0.000345,8]
[327824301,1716514247670,-150.0,0.00034503,7]
[327824302,1716514247680,-259.66612387,0.00034511,2]
[327824303,1716514247689,-180.0,0.00034526,2]
[327824304,1716514247698,-1518.41981039,0.00034528,6]
[327824305,1716514247708,-150.0,0.00034548,10]
[327824306,1716514247718,-10000.0,0.000346,2]
[327824307,1716514247728,-1518.41981039,0.00034652,7]
[327824308,1716514247737,-150.0,0.00034682,7]
[327824309,1716514247746,-11631.98186088,0.00034697,2]
[327824310,1716514247755,-155.44868764,0.000347,5]
[327824311,1716514247765,-319828.51570309,0.000347,2]
[327824312,1716514247781,-65379.23427241,0.000347,2]
[327824315,1716514424414,4485931.62411615,0.00013,2]
[327824316,1716514424452,196000.0,0.00013,2]
[327824317,1716514424490,5653.0,0.00013,2]
[327824318,1716514424523,25100.0,0.00013,2]
[327824319,1716514470204,2850.64,0.00029984,61]
[327824320,1716514500560,156.0,0.00031,120]
[327824321,1716514558042,400.0,0.00025944,120]
[327824322,1716514558606,400.0,0.00029187,120]
[327824323,1716514687798,182.87,0.00027068,30]
[327824324,1716514703333,-1483.43721539,0.000129,2]
[327824325,1716514703358,-2147243.50369915,0.00013,2]
[327824326,1716514703379,-1107420.46058546,0.00013,2]
[327824327,1716514900159,-625.7430158,0.000129,2]
[327824328,1716514900182,-154.29,0.0001299,2]
[327824329,1716514900206,-154.29,0.0001299,2]
[327824330,1716514900228,-1615.6769842,0.00012999,2]
[327824331,1716514945353,150.0,5e-05,2]
[327824332,1716514945378,20.95600419,5e-05,2]
[327824333,1716515132127,180.16,0.00028423,120]
[327824356,1716515432115,-299.9769343,0.00012973,2]
[327824357,1716515432125,-3.3280657,0.00012973,2]
[327824358,1716515432139,-399.02066869,0.00012973,2]
[327824359,1716515432148,-154.29,0.0001299,2]
[327824361,1716515432157,-698.16486606,0.00012998,2]
[327824363,1716515432167,-653.28459264,0.00012998,2]
[327824365,1716515432176,-1158.29416225,0.00012998,2]
[327824367,1716515432186,-7937.08864167,0.00012999,2]
[327824369,1716515432195,-200.0,0.00012999,2]
[327824371,1716515432204,-88469.04127387,0.00013,2]
[327824375,1716515432353,-844.00971584,0.00013,2]
[327824381,1716515432401,-1547725.88396682,0.00013,2]
[327824383,1716515432412,-105931.78323994,0.00013,2]
[327824385,1716515432423,-3360.75131799,0.00013,2]
[327824388,1716515432435,-13758.9173352,0.00013,2]
[327824390,1716515432447,-858.16390953,0.00013,2]
[327824426,1716515438241,-457629.98861088,0.00013,2]
[327824427,1716515438253,-1398.82810855,0.00013,2]
[327824428,1716515438264,-1700.06022344,0.00013,2]
[327824430,1716515440970,-47122.33333971,0.00013,2]
[327824432,1716515441699,-2371309.96661056,0.00013,2]
[327824433,1716515441708,-170.99572173,0.00013173,2]
[327824434,1716515441718,-153.58,0.00013973,2]
[327824435,1716515441727,-156.37,0.00013973,2]
[327824436,1716515441736,-155.0,0.00015,2]
[327824437,1716515441746,-299.97693424,0.00016711,2]
[327824438,1716515441755,-3115.51736452,0.00017225,2]
[327824439,1716515441764,-499.99,0.00017225,2]
[327824440,1716515441778,-299.99,0.00017225,4]
[327824441,1716515441788,-7514.85,0.00017225,2]
[327824442,1716515441799,-283.16,0.0001726,2]
[327824443,1716515441808,-150.99,0.0001726,2]
[327824444,1716515441818,-482.15,0.0001726,2]
[327824445,1716515441828,-150.99,0.0001726,2]
[327824446,1716515441837,-9999.99,0.0001726,2]
[327824447,1716515441848,-182.41220206,0.00019178,2]
[327824448,1716515441859,-499.99,0.00019178,2]
[327824449,1716515441869,-150.99,0.00019178,2]
[327824450,1716515441879,-249.91,0.000192,2]
[327824451,1716515441888,-384.64,0.000192,2]
[327824452,1716515441897,-756.94,0.00019452,2]
[327824453,1716515441907,-4453.15486097,0.0002,2]
[327824454,1716515441916,-512.0,0.000204,2]
[327824455,1716515441926,-299.97693424,0.00020449,2]
[327824456,1716515441935,-415.83,0.00020707,2]
[327824457,1716515441946,-9676.83,0.00020951,2]
[327824458,1716515441955,-26482.32,0.00020951,2]
[327824459,1716515441965,-4351.57,0.00021944,2]
[327824460,1716515441975,-250.0,0.00022083,2]
[327824461,1716515441984,-250.0,0.00022419,2]
[327824462,1716515441994,-250.0,0.00022424,2]
[327824463,1716515442003,-2311.22,0.00022511,2]
[327824464,1716515442012,-409.1,0.0002253,2]
[327824465,1716515442022,-252.74,0.0002256,2]
[327824466,1716515442031,-1833.47,0.00022601,2]
[327824467,1716515442042,-180.16,0.00022738,2]
[327824468,1716515442052,-1664.88,0.00022853,2]
[327824469,1716515442061,-773.45,0.00022885,2]
[327824470,1716515442070,-342.9,0.00022888,2]
[327824471,1716515442080,-488.57325777,0.00022889,2]
[327824472,1716515442090,-488.57325774,0.00022889,2]
[327824473,1716515442103,-488.57325774,0.00022889,2]
[327824474,1716515442114,-488.57325774,0.00022889,2]
[327824475,1716515442125,-6083.32,0.00022893,2]
[327824476,1716515442137,-150.0,0.00022922,2]
[327824477,1716515442148,-488.57325774,0.00022941,2]
[327824478,1716515442159,-415.83,0.00022971,2]
[327824479,1716515442170,-6246.68,0.00023053,2]
[327824480,1716515442182,-600.0,0.00023121,2]
[327824481,1716515442193,-23900.0,0.00023129,2]
[327824482,1716515442203,-7598.42,0.000232,2]
[327824483,1716515442212,-278.28,0.00023311,2]
[327824484,1716515442222,-889.1,0.00023354,2]
[327824485,1716515442232,-200.0,0.00023354,2]
[327824486,1716515442242,-2751.0,0.00023373,2]
[327824487,1716515442253,-200.0,0.00023392,2]
[327824488,1716515442264,-4024.0,0.00023411,2]
[327824489,1716515442274,-889.1,0.00023418,2]
[327824490,1716515442284,-153.58,0.00023435,2]
[327824491,1716515442295,-500.0,0.00023453,2]
[327824492,1716515442305,-1024.1,0.00023453,2]
[327824493,1716515442316,-889.1,0.00023482,2]
[327824494,1716515442326,-1395.3,0.00023495,2]
[327824495,1716515442337,-889.1,0.00023546,2]
[327824496,1716515442348,-889.1,0.0002361,2]
[327824497,1716515442358,-889.1,0.00023674,2]
[327824498,1716515442370,-889.1,0.00023738,2]
[327824499,1716515442380,-889.1,0.00023802,2]
[327824500,1716515442392,-889.1,0.00023866,2]
[327824501,1716515442402,-889.1,0.0002393,2]
[327824502,1716515442413,-889.1,0.00023994,2]
[327824503,1716515442424,-2582.50262043,0.00024,3]
[327824504,1716515442435,-175.53,0.0002401,2]
[327824505,1716515442447,-889.1,0.00024058,2]
[327824506,1716515442459,-889.1,0.00024122,2]
[327824507,1716515442469,-889.1,0.00024186,2]
[327824508,1716515442480,-299.97693424,0.00024187,2]
[327824509,1716515442491,-402.34873438,0.00024187,2]
[327824510,1716515442502,-180.0,0.0002423,2]
[327824511,1716515442512,-889.1,0.0002425,2]
[327824512,1716515442523,-889.1,0.00024314,2]
[327824513,1716515442532,-889.1,0.00024379,2]
[327824514,1716515442545,-889.1,0.00024443,2]
[327824515,1716515442554,-889.1,0.00024507,2]
[327824516,1716515442566,-889.1,0.00024571,2]
[327824517,1716515442578,-170.46,0.00024949,2]
[327824518,1716515442589,-927.04584446,0.00025,2]
[327824519,1716515442599,-5000.0,0.00025,7]
[327824520,1716515442609,-249.91,0.00025,2]
[327824521,1716515442620,-384.64,0.00025,2]
[327824522,1716515442631,-400.0,0.00025033,2]
[327824523,1716515442642,-415.83,0.00025235,2]
[327824524,1716515442653,-169.04058855,0.00025294,2]
[327824525,1716515442664,-488.57325774,0.00025432,2]
[327824526,1716515442674,-160.83770689,0.00025687,2]
[327824527,1716515442685,-6246.68,0.00025792,2]
[327824528,1716515442696,-600.0,0.00026011,2]
[327824529,1716515442707,-700.0,0.00026206,2]
[327824530,1716515442717,-170.46,0.00026273,2]
[327824531,1716515442727,-700.0,0.00026754,2]
[327824532,1716515442737,-700.0,0.00027302,2]
[327824533,1716515442747,-805.2552867,0.0002739,2]
[327824534,1716515442757,-415.83,0.00027499,2]
[327824535,1716515442768,-170.46,0.00027596,2]
[327824536,1716515442782,-700.0,0.0002785,2]
[327824537,1716515442793,-299.97693424,0.00027924,2]
[327824538,1716515442815,-488.57325774,0.00027924,2]
[327824539,1716515442830,-400.0,0.00028162,2]
[327824540,1716515442843,-166.04,0.00028189,2]
[327824541,1716515442854,-793461.27020642,0.00028314,4]
[327824542,1716515442869,-700.0,0.00028398,2]
[327824543,1716515442881,-170.7972936,0.00028398,2]
[327824544,1716515442893,-1199.60639171,0.00028423,2]
[327824545,1716515442905,-6246.68,0.00028532,2]
[327824546,1716515442917,-249.91,0.000286,2]
[327824547,1716515442928,-384.64,0.000286,2]
[327824548,1716515442940,-1560.61612366,0.00028726,2]
[327824549,1716515442952,-600.0,0.00028901,2]
[327824550,1716515442964,-170.46,0.0002892,2]
[327824551,1716515442976,-700.0,0.00028946,2]
[327824552,1716515442988,-2255.20865169,0.00029615,2]
[327824554,1716515443000,-160.0,0.00029723,2]
[327824555,1716515443012,-160.0,0.00029732,2]
[327824556,1716515443024,-160.0,0.0002974,2]
[327824557,1716515443035,-415.83,0.00029763,2]
[327824558,1716515443046,-7677.719,0.000299,2]
[327824559,1716515443056,-16000.0,0.0002992,2]
[327824560,1716515443066,-23832.89977352,0.0003,4]
[327824561,1716515443075,-19407.89719547,0.0003,4]
[327824562,1716515443085,-5690.83016937,0.0003,2]
[327824563,1716515443094,-998.66,0.0003,2]
[327824564,1716515443104,-310.475887,0.0003,2]
[327824565,1716515443113,-700.0,0.00030042,10]
[327824566,1716515443123,-170.46,0.00030243,2]
[327824567,1716515443132,-2103.758,0.00030306,2]
[327824568,1716515443142,-150.67,0.00030378,2]
[327824569,1716515443152,-150.67,0.00030387,2]
[327824570,1716515443162,-150.67,0.00030396,2]
[327824571,1716515443173,-249.91,0.000304,2]
[327824572,1716515443184,-384.64,0.000304,2]
[327824573,1716515443195,-150.67,0.00030405,2]
[327824574,1716515443206,-150.67,0.00030413,2]
[327824575,1716515443217,-488.57325774,0.00030416,2]
[327824576,1716515443227,-150.67,0.00030422,2]
[327824577,1716515443239,-150.67,0.00030431,2]
[327824579,1716515443249,-150.67,0.0003044,2]
[327824581,1716515443259,-150.67,0.00030449,2]
[327824582,1716515443268,-150.67,0.00030458,2]
[327824583,1716515443277,-150.67,0.00030467,2]
[327824584,1716515443287,-150.67,0.00030476,2]
[327824585,1716515443299,-150.67,0.00030485,2]
[327824586,1716515443309,-150.67,0.00030494,2]
[327824587,1716515443319,-150.67,0.00030503,2]
[327824588,1716515443329,-166.19441455,0.00030504,7]
[327824589,1716515443339,-150.67,0.00030512,2]
[327824590,1716515443350,-150.67,0.00030521,2]
[327824591,1716515443362,-150.67,0.0003053,2]
[327824592,1716515443373,-983.511,0.00030536,2]
[327824593,1716515443384,-441.418,0.00030536,2]
[327824594,1716515443394,-813.516,0.00030536,2]
[327824595,1716515443404,-165.058,0.00030536,2]
[327824596,1716515443413,-564.21,0.00030536,2]
[327824597,1716515443423,-150.524,0.00030536,2]
[327824598,1716515443433,-2405.889,0.00030536,2]
[327824599,1716515443443,-1132.792,0.00030536,2]
[327824600,1716515443452,-1655.961,0.00030536,2]
[327824601,1716515443462,-216.0,0.00030536,2]
[327824602,1716515443472,-3174.822,0.00030536,2]
[327824604,1716515443482,-1466.0,0.00030536,2]
[327824606,1716515443492,-5136.0,0.00030536,2]
[327824608,1716515443502,-291.738,0.00030536,2]
[327824610,1716515443512,-37912.0,0.00030536,2]
[327824612,1716515443522,-5818.285,0.00030536,2]
[327824615,1716515443532,-998.66,0.0003094,2]